bitfinex-derivatives/quotes_ETHF0:USTF0_20250224
["timestamp","ask_amount","ask_price","bid_price","bid_amount"]
[1740414718351,0.00561241,2677.1,2676.8,1.29152]
[1740414718652,0.00561241,2677.1,2676.9,0.74711]
[1740414718853,0.00561241,2677.1,2676.8,0.5444]
[1740414719055,0.75268241,2677.1,2676.8,0.5444]
[1740414719250,0.75268241,2677.1,2676.8,1.29153]
[1740414719752,0.75267241,2677.1,2676.8,1.29152]
[1740414719954,0.75267241,2677.1,2676.8,1.29153]
[1740414720152,0.74711,2677.0,2676.8,0.5444]
[1740414720351,0.7471,2677.0,2676.8,0.5444]
[1740414720750,0.00561241,2677.1,2676.8,0.5444]
[1740414721049,0.74711,2676.9,2676.8,0.5444]
[1740414721250,3.2078,2676.9,2676.5,0.5578]
[1740414721444,0.74725,2676.5,2676.3,0.00561241]
[1740414721653,0.74725,2676.4,2676.3,0.00561241]
[1740414722154,4.18825,2676.4,2676.3,0.00561241]
[1740414722350,1.86821,2676.3,2675.6,0.5512]
[1740414722560,0.59583413,2676.2,2675.6,0.5512]
[1740414722854,0.3741,2675.9,2675.4,0.5415]
[1740414723152,3.2078,2675.7,2675.0,3.2078]
[1740414723351,0.06133708,2675.6,2674.9,0.5415]
[1740414723656,0.3741,2675.4,2675.1,0.75321241]
[1740414724558,0.37971241,2675.6,2675.1,0.75322241]
[1740414724857,0.3741,2675.4,2675.1,0.75322241]
[1740414725156,0.37971241,2675.6,2675.1,0.00561241]
[1740414725350,0.3741,2675.2,2675.1,0.00561241]
[1740414725551,0.74759,2675.2,2675.1,0.00561241]
[1740414726145,1.12169,2675.2,2675.1,0.00561241]
[1740414726757,0.74759,2675.2,2675.1,0.00561241]
[1740414727258,1.12169,2675.2,2675.1,0.00561241]
[1740414727453,1.12169,2675.2,2675.1,0.00203768]
[1740414727854,0.74759,2675.2,2675.1,0.00203768]
[1740414728752,0.5861,2675.5,2675.1,0.00203768]
[1740414728957,3.21341241,2675.6,2675.1,0.00203768]
[1740414728958,3.44561241,2675.6,2675.1,0.00203768]
[1740414729157,0.74751,2675.5,2675.2,0.74758]
[1740414729552,3.44561241,2675.6,2675.3,40.8]
[1740414729553,0.00561241,2675.6,2675.3,40.8]
[1740414729752,0.00561241,2675.6,2675.5,0.7475]
[1740414730054,0.00561241,2675.6,2675.4,0.74753]
[1740414730559,0.00561241,2675.6,2675.3,44.0078]
[1740414730760,0.00561241,2675.6,2675.3,3.95534]
[1740414730961,0.00561241,2675.6,2675.3,3.2078]
[1740414731256,0.00561241,2675.6,2675.1,0.00203768]
[1740414731457,0.00561241,2675.6,2675.3,3.2078]
[1740414731654,0.00561241,2675.6,2675.1,0.00203768]
[1740414731959,0.74752,2675.5,2675.2,3.95538]
[1740414732154,3.44461241,2675.6,2675.2,3.2078]
[1740414732659,0.74754,2675.4,2675.2,3.2078]
[1740414732859,0.3741,2675.3,2675.2,0.74759]
[1740414733265,0.3741,2675.3,2675.2,3.95539]
[1740414733558,1.12166,2675.3,2675.2,3.2078]
[1740414733959,0.3741,2675.5,2675.1,0.00203768]
[1740414734159,0.3741,2675.3,2675.1,0.00203768]
[1740414734358,3.44461241,2675.6,2675.1,3.20983768]
[1740414734554,3.44461241,2675.6,2675.1,0.00203768]
[1740414734754,5.31333241,2675.6,2675.1,3.20983768]
[1740414734955,0.74756,2675.4,2675.1,0.74964768]
[1740414735155,3.44461241,2675.6,2675.1,0.00203768]
[1740414735355,0.74757,2675.3,2675.1,0.00203768]
[1740414735556,1.12169,2675.2,2675.1,0.00203768]
[1740414737162,0.3741,2675.2,2675.1,0.00203768]
[1740414737566,0.00561241,2675.6,2675.1,0.00203768]
[1740414737865,0.00561241,2675.6,2675.3,3.2078]
[1740414738072,2.41e-06,2675.6,2675.4,3.9736]
[1740414738269,2.41e-06,2675.6,2675.5,0.7475]
[1740414739059,2.41e-06,2675.6,2675.5,6.7475]
[1740414739262,2.41e-06,2675.6,2675.5,0.7475]
[1740414740261,2.41e-06,2675.6,2675.4,0.5356]
[1740414740472,2.41e-06,2675.6,2675.3,3.2078]
[1740414740473,0.3741,2675.5,2675.3,3.2078]
[1740414740768,0.3741,2675.4,2675.3,3.95536]
[1740414740958,2.41e-06,2675.6,2675.3,3.2078]
[1740414741163,2.41e-06,2675.6,2675.5,0.7475]
[1740414742167,2.41e-06,2675.6,2675.5,1.3036]
[1740414743271,2.41e-06,2675.6,2675.5,7.3036]
[1740414744773,2.41e-06,2675.6,2675.5,1.3036]
[1740414745267,2.41e-06,2675.6,2675.5,7.3036]
[1740414747173,2.41e-06,2675.6,2675.5,6.5561]
[1740414748769,2.41e-06,2675.6,2675.5,9.9921]
[1740414749674,2.41e-06,2675.6,2675.5,3.9921]
[1740414750676,2.41e-06,2675.6,2675.5,0.5561]
[1740414751280,2.41e-06,2675.6,2675.1,0.00203768]
[1740414751471,3.2078,2675.5,2675.1,0.00203768]
[1740414751876,6.6438,2675.5,2675.1,0.00203768]
[1740414752075,3.436,2675.5,2675.1,0.00203768]
[1740414752275,0.74754,2675.4,2675.2,0.74759]
[1740414752772,4.18353,2675.5,2675.2,0.74759]
[1740414753079,0.74755,2675.4,2675.1,0.74962768]
[1740414753377,3.436,2675.5,2675.1,0.00203768]
[1740414753581,0.74755,2675.4,2675.1,0.74964768]
[1740414753778,0.74754,2675.4,2675.1,0.74962768]
[1740414753979,3.436,2675.5,2675.1,0.00203768]
[1740414754387,0.74755,2675.4,2675.1,0.74963768]
[1740414754577,3.436,2675.5,2675.1,0.00203768]
[1740414754881,0.74757,2675.3,2675.1,0.00203768]
[1740414755377,0.74753,2675.4,2675.1,0.00203768]
[1740414755581,0.74759,2675.2,2675.1,0.00203768]
[1740414755785,0.3741,2675.2,2674.7,3.2078]
[1740414755984,0.74768,2674.9,2674.7,3.2078]
[1740414756284,4.18265,2675.0,2674.7,3.95552]
[1740414756586,3.435,2675.0,2674.4,4.5138]
[1740414756776,0.74778,2674.6,2674.4,3.2078]
[1740414756978,0.74778,2674.5,2674.4,3.21341241]
[1740414757179,7.39058,2674.5,2674.4,0.00561241]
[1740414757380,6.70418082,2674.5,2673.7,3.2078]
[1740414757585,0.06138082,2674.4,2673.7,3.2078]
[1740414757784,0.74794,2674.0,2673.7,3.9558]
[1740414757975,3.435,2674.3,2673.7,3.2078]
[1740414758180,0.74788,2674.2,2673.9,0.74793]
[1740414758483,4.18846241,2674.3,2674.0,0.74792]
[1740414758685,3.44061241,2674.3,2674.0,0.74792]
[1740414758882,3.44061241,2674.3,2674.2,0.74787]
[1740414759081,4.18847241,2674.3,2673.9,3.2078]
[1740414759282,0.00561241,2674.3,2673.9,3.2078]
[1740414759488,0.00561241,2674.3,2674.2,0.74787]
[1740414759676,0.00561241,2674.3,2674.2,3.95567]
[1740414759877,0.00561241,2674.3,2674.2,3.95209456]
[1740414760082,0.00561241,2674.3,2674.2,3.95567]
[1740414761284,0.75345241,2674.3,2674.2,3.2078]
[1740414761483,0.00561241,2674.3,2674.2,0.74787]
[1740414761683,0.00561241,2674.3,2674.1,40.8]
[1740414761885,0.00561241,2674.3,2673.9,3.2078]
[1740414762090,0.00561241,2674.3,2674.1,0.74789]
[1740414762289,0.00561241,2674.3,2673.8,0.00561]
[1740414762482,0.00561241,2674.3,2673.9,3.2078]
[1740414762688,0.74787,2674.2,2673.9,3.95574]
[1740414762986,1.65501,2674.1,2673.8,0.75357]
[1740414763182,0.9071,2674.1,2673.8,0.00561]
[1740414763386,0.533,2674.1,2673.8,0.00561]
[1740414763579,0.74792,2674.0,2673.8,0.00561]
[1740414763779,3.2078,2674.0,2673.8,0.00561]
[1740414763983,1.12205,2673.9,2673.8,0.00561]
[1740414764185,2.20105,2673.9,2673.8,0.00561]
[1740414764494,2.26244283,2673.9,2673.8,0.00561]
[1740414765186,1.51449283,2673.9,2673.8,0.00561]
[1740414765381,4.94849283,2673.9,2673.8,0.00561]
[1740414765593,4.8871,2673.9,2673.8,0.00561]
[1740414765796,1.19439,2673.8,2673.7,0.748]
[1740414766086,1.94237,2673.8,2673.6,3.2078]
[1740414766487,1.19439,2673.8,2673.7,0.74801]
[1740414766690,1.19439,2673.8,2673.6,3.2078]
[1740414767189,1.19439,2673.8,2673.7,0.74801]
[1740414767494,1.19439,2673.8,2673.7,1.28201]
[1740414767990,1.19439,2673.8,2673.7,42.08201]
[1740414768893,1.19439,2673.8,2673.7,45.51601]
[1740414769093,1.19439,2673.8,2673.7,45.51701]
[1740414770094,1.19439,2673.8,2673.7,3.969]
[1740414770497,1.19439,2673.8,2673.7,3.968]
[1740414771399,1.19439,2673.8,2673.7,0.534]
[1740414771596,1.19439,2673.8,2673.7,3.968]
[1740414771998,0.00561241,2674.3,2673.7,3.968]
[1740414772195,0.00561241,2674.3,2674.0,3.2078]
[1740414772694,0.00561241,2674.3,2673.7,0.534]
[1740414772998,0.3741,2674.2,2673.6,3.2078]
[1740414773198,0.06138606,2674.1,2673.6,3.2078]
[1740414773391,0.3741,2674.2,2673.6,3.2078]
[1740414773591,0.3741,2674.2,2673.5,3.2078]
[1740414773792,0.3741,2674.2,2673.9,3.2078]
[1740414774090,0.37971241,2674.3,2673.6,3.2078]
[1740414774686,0.37971241,2674.3,2673.9,3.2078]
[1740414775498,3.58751241,2674.3,2673.6,3.2078]
[1740414775899,0.06138454,2674.2,2673.6,3.2078]
[1740414776400,3.58751241,2674.3,2673.6,3.2078]
[1740414777302,0.06138619,2674.2,2673.6,3.2078]
[1740414778401,0.37971241,2674.3,2673.6,3.2078]
[1740414779201,0.06138396,2674.2,2673.6,3.2078]
[1740414779904,0.3741,2674.0,2673.6,3.2078]
[1740414780105,0.5448,2673.9,2673.6,3.2078]
[1740414780308,3.5819,2673.8,2673.3,2.982]
[1740414780900,3.5819,2673.8,2673.1,3.7803]
[1740414781101,0.06139585,2673.7,2673.1,3.7803]
[1740414781404,0.06139603,2673.7,2673.1,3.7803]
[1740414781700,3.5819,2673.8,2673.1,3.7803]
[1740414782102,0.06139692,2673.7,2673.1,3.7803]
[1740414782402,3.5819,2673.8,2673.1,3.7803]
[1740414783305,0.06139546,2673.7,2673.1,3.7803]
[1740414783605,3.5819,2673.8,2673.1,3.7803]
[1740414784007,0.06139575,2673.7,2673.1,0.5725]
[1740414784301,3.2078,2673.4,2672.5,3.2078]
[1740414784501,0.3741,2672.8,2672.2,4.3107]
[1740414784706,3.8071,2672.8,2672.2,4.3107]
[1740414784910,3.5819,2672.6,2672.2,1.1029]
[1740414785097,0.3741,2672.4,2672.2,0.5666]
[1740414785299,0.3741,2672.4,2672.0,3.2078]
[1740414785507,0.3741,2672.2,2672.0,3.2078]
[1740414785707,0.3741,2672.2,2672.0,3.95628]
[1740414786106,0.3741,2672.6,2672.0,3.2078]
[1740414786408,3.99101241,2672.8,2672.3,3.2078]
[1740414786409,0.00561241,2672.8,2672.3,3.2078]
[1740414786604,0.00561241,2672.8,2672.4,2.97079]
[1740414786802,0.00561241,2672.8,2672.7,0.74829]
[1740414787006,0.00561241,2672.8,2672.4,1.84826]
[1740414787007,0.74829,2672.7,2672.4,1.84826]
[1740414787203,0.00561241,2672.8,2672.4,5.05606]
[1740414787409,0.09449,2672.2,2672.1,7.38826]
[1740414788610,0.09449,2672.2,2672.1,48.18826]
[1740414789113,0.84292,2672.2,2672.1,3.2078]
[1740414789307,0.7485,2672.0,2671.7,3.2078]
[1740414789612,0.09449,2672.2,2671.8,0.74852]
[1740414789805,0.09449,2672.2,2671.7,3.2078]
[1740414790002,0.7485,2672.0,2671.8,0.74853]
[1740414790209,0.09449,2672.2,2671.7,3.95635]
[1740414790210,0.74854,2671.9,2671.7,3.95635]
[1740414790406,0.564,2672.1,2671.7,3.2078]
[1740414790717,1.31246,2672.1,2671.9,0.74849]
[1740414791109,0.74849,2672.0,2671.8,0.74852]
[1740414791412,0.564,2672.1,2671.8,0.74854]
[1740414791613,0.564,2672.1,2671.9,0.74851]
[1740414791807,0.74849,2672.0,2671.8,0.74852]
[1740414792115,0.09449,2672.2,2671.9,3.433]
[1740414792308,0.09449,2672.2,2672.1,3.95626]
[1740414792610,0.09449,2672.2,2671.9,40.8]
[1740414792819,0.09449,2672.2,2671.8,3.2078]
[1740414793011,0.74849,2672.0,2671.8,3.95633]
[1740414793513,0.84292,2672.2,2672.0,0.74847]
[1740414793910,0.74846,2672.1,2671.9,0.7485]
[1740414794409,0.09449,2672.2,2672.1,0.74846]
[1740414794814,0.84292,2672.2,2672.0,0.74847]
[1740414795109,0.84292,2672.2,2671.8,3.2078]
[1740414795110,0.09449,2672.2,2671.8,3.2078]
[1740414795312,0.3741,2672.0,2671.8,3.2078]
[1740414795507,0.74851,2671.9,2671.8,3.2078]
[1740414795708,1.12261,2671.9,2671.8,3.2078]
[1740414795914,0.74851,2671.9,2671.8,3.2078]
[1740414796110,0.74851,2671.9,2671.5,1.1323]
[1740414796310,0.74851,2671.9,2671.6,0.74857]
[1740414796511,0.74849,2672.0,2671.7,0.74855]
[1740414796721,2.82786,2672.1,2671.9,0.7485]
[1740414796913,0.09449,2672.2,2671.8,3.2078]
[1740414797118,0.09449,2672.2,2672.1,0.74846]
[1740414797518,0.09449,2672.2,2671.8,3.2078]
[1740414797819,0.46859,2672.2,2672.1,0.74846]
[1740414798213,0.3741,2672.4,2672.2,0.74841]
[1740414798415,1.12249,2672.4,2672.1,0.74843]
[1740414798613,0.3741,2672.5,2671.8,3.7634]
[1740414798913,0.5619,2672.6,2672.5,0.74834]
[1740414799119,1.31022,2672.6,2672.4,0.74836]
[1740414799513,0.5619,2672.6,2672.5,0.74834]
[1740414799711,0.9244,2672.7,2672.6,0.74831]
[1740414800016,0.3741,2672.5,2672.2,1.1136]
[1740414800211,0.3741,2672.5,2672.3,0.74838]
[1740414800425,0.3741,2672.3,2672.2,1.86202]
[1740414800618,1.12253,2672.2,2672.1,3.2078]
[1740414801020,0.3741,2672.2,2672.1,3.2078]
[1740414801325,1.12253,2672.2,2672.1,3.2078]
[1740414802220,0.3741,2672.2,2672.1,3.2078]
[1740414802921,0.3741,2672.2,2671.8,3.2078]
[1740414803518,0.3741,2672.0,2671.8,3.2078]
[1740414803924,0.3741,2672.0,2671.8,2.8332]
[1740414804119,0.3741,2672.0,2671.8,2.084]
[1740414804314,3.5819,2672.0,2671.3,1.1648]
[1740414805525,4.1219,2672.0,2671.3,1.1648]
[1740414805725,0.06144424,2671.9,2671.3,1.1648]
[1740414806021,0.3741,2671.4,2671.3,1.1648]
[1740414806222,0.3741,2671.4,2670.9,3.2078]
[1740414806420,0.9418,2671.4,2670.9,3.2078]
[1740414806612,0.9418,2671.4,2670.7,1.1483]
[1740414806814,0.94741241,2671.4,2670.8,3.2078]
[1740414807022,0.3741,2671.2,2670.8,3.2078]
[1740414807224,0.3741,2671.0,2670.8,3.2078]
[1740414807417,0.3741,2671.0,2670.9,0.74879]
[1740414807718,0.09449,2671.3,2670.8,3.2078]
[1740414807925,0.09449,2671.3,2671.2,0.74871]
[1740414808223,0.09449,2671.3,2670.8,3.2078]
[1740414808415,0.84319,2671.3,2671.0,0.74876]
[1740414808615,0.09449,2671.3,2670.8,3.2078]
[1740414808814,0.09449,2671.3,2670.8,5.07984]
[1740414809024,0.09449,2671.3,2671.1,0.74873]
[1740414809224,0.84319,2671.3,2671.0,0.74875]
[1740414809428,0.84318,2671.3,2671.0,0.74875]
[1740414809627,0.09449,2671.3,2671.1,0.74871]
[1740414809924,0.74871,2671.2,2671.0,0.74875]
[1740414810118,0.74874,2671.1,2670.9,0.74878]
[1740414810317,0.09449,2671.3,2670.8,3.2078]
[1740414810516,0.84319,2671.3,2671.1,0.74873]
[1740414810717,0.09449,2671.3,2671.1,0.74871]
[1740414810915,0.84317,2671.3,2671.0,0.74874]
[1740414811124,0.84317,2671.3,2671.1,0.74873]
[1740414811519,1.32198241,2671.4,2670.8,3.2078]
[1740414811716,0.57331241,2671.4,2670.8,3.2078]
[1740414812222,0.00561241,2671.4,2671.3,0.74868]
[1740414812424,0.75427241,2671.4,2671.1,3.2078]
[1740414812721,0.00561241,2671.4,2671.3,0.74868]
[1740414813027,0.00561241,2671.4,2671.1,3.2078]
[1740414813225,0.37971241,2671.4,2671.3,0.74868]
[1740414813427,1.12839241,2671.4,2671.2,0.7487]
[1740414813728,0.37971241,2671.4,2671.3,0.74868]
[1740414813920,0.00561241,2671.4,2671.3,0.74868]
[1740414814621,0.00561241,2671.4,2671.3,44.97968]
[1740414815125,0.00561241,2671.4,2671.3,4.17868]
[1740414815826,1.1172,2672.4,2671.4,1.87163]
[1740414816022,1.12258,2672.1,2672.0,0.74846]
[1740414816322,0.3741,2672.1,2672.0,0.74846]
[1740414816526,0.74844,2672.2,2672.1,0.74842]
[1740414816727,1.1172,2672.4,2671.9,1.87129]
[1740414817030,0.74845,2672.2,2672.1,0.74844]
[1740414817333,1.12256,2672.1,2672.0,3.95626]
[1740414817624,1.12258,2672.0,2671.9,0.00561241]
[1740414818227,0.3741,2672.0,2671.9,0.00561241]
[1740414818530,0.3741,2672.0,2671.9,0.75412241]
[1740414818824,0.3741,2672.0,2671.9,0.00561241]
[1740414819127,0.3741,2672.0,2671.9,0.75412241]
[1740414819429,4.33061241,2672.4,2671.9,0.00561241]
[1740414819624,0.3741,2672.1,2672.0,0.74848]
[1740414820023,4.33061241,2672.4,2671.9,3.21341241]
[1740414820024,0.74848,2672.0,2671.9,3.21341241]
[1740414820326,4.33061241,2672.4,2671.9,3.21341241]
[1740414820525,0.3741,2672.3,2671.9,3.21341241]
[1740414821027,0.3741,2672.3,2671.9,3.11892241]
[1740414823222,3.75331241,2672.4,2671.9,3.11892241]
[1740414823429,3.21341241,2672.4,2671.9,3.11892241]
[1740414823624,0.00561241,2672.4,2672.3,3.2078]
[1740414825230,3.429,2673.3,2672.7,1.87071]
[1740414825428,0.74819,2673.1,2673.0,0.74819]
[1740414825934,0.74817,2673.2,2673.0,0.74819]
[1740414826133,7.0109,2673.4,2672.8,0.5804]
[1740414826336,0.06140531,2673.3,2673.2,0.74813]
[1740414826631,0.00561241,2673.4,2672.8,4.01401241]
[1740414826831,0.75373241,2673.4,2673.1,0.74817]
[1740414827035,0.00561241,2673.4,2673.1,0.74817]
[1740414827225,0.75372241,2673.4,2672.8,4.01401241]
[1740414827537,0.00561241,2673.4,2673.3,0.74812]
[1740414828534,0.00561241,2673.4,2673.0,3.744]
[1740414828925,0.00561241,2673.4,2673.3,0.74812]
[1740414830534,0.5435,2674.3,2673.7,1.87002]
[1740414830835,3.2691845,2674.2,2673.7,1.87003]
[1740414831033,0.5541,2674.3,2673.8,1.86996]
[1740414831238,0.5541,2674.3,2674.2,0.74787]
[1740414831737,3.76051241,2674.5,2674.0,0.74791]
[1740414831937,3.76051241,2674.5,2674.1,0.5315]
[1740414832332,1.30050241,2674.5,2674.1,0.5315]
[1740414832534,4.50831241,2674.5,2674.1,0.5315]
[1740414832939,3.76051241,2674.5,2674.1,0.5315]
[1740414833137,0.74786,2674.3,2674.1,0.5315]
[1740414833336,3.76051241,2674.5,2674.1,0.5315]
[1740414833534,3.76051241,2674.5,2673.9,1.77182898]
[1740414833845,0.74798,2673.8,2673.7,0.5588]
[1740414834035,3.2078,2674.2,2673.5,0.5564]
[1740414834341,0.74802,2673.7,2673.3,3.2078]
[1740414834541,2.43164,2674.0,2673.3,3.2078]
[1740414834542,5.85764,2674.0,2673.3,3.2078]
[1740414834840,0.74803,2673.7,2673.3,3.2078]
[1740414835039,0.566,2673.9,2673.3,3.2078]
[1740414835239,0.74799,2673.8,2673.3,3.95591]
[1740414835634,0.5618,2674.0,2673.6,0.74802]
[1740414835635,1.30973,2674.0,2673.6,0.74802]
[1740414835842,0.5618,2674.0,2673.3,3.2078]
[1740414836143,0.5618,2674.0,2673.3,3.95592]
[1740414836345,0.74802,2673.7,2673.3,3.95592]
[1740414836644,0.74805,2673.6,2673.3,3.95592]
[1740414836846,0.74803,2673.7,2673.3,3.95592]
[1740414837146,3.2078,2673.9,2673.2,0.74815]
[1740414837147,0.74807,2673.5,2673.2,0.74815]
[1740414837341,0.74809,2673.4,2673.1,4.28657]
[1740414837641,0.74809,2673.4,2673.1,7.71157]
[1740414837849,0.74804,2673.6,2673.3,0.74809]
[1740414838051,0.74804,2673.6,2673.1,6.9634]
[1740414838251,0.7481,2673.4,2673.2,0.74814]
[1740414838653,0.3741,2673.7,2673.1,6.9634]
[1740414838946,0.74809,2673.4,2673.3,3.95591]
[1740414839151,0.74809,2673.4,2673.3,3.2078]
[1740414839351,3.2078,2673.5,2673.1,0.5564]
[1740414839645,1.12225,2673.2,2673.1,0.5564]
[1740414840147,0.3741,2673.0,2672.8,2.98761241]
[1740414840352,0.74823,2672.9,2672.8,0.00561241]
[1740414840551,1.12233,2672.9,2672.8,0.00561241]
[1740414841049,0.00561241,2673.1,2672.8,0.00561241]
[1740414841442,0.74822,2673.0,2672.8,0.75385241]
[1740414841641,0.74823,2672.9,2672.8,0.00561241]
[1740414844059,0.00561241,2673.1,2673.0,0.7482]
[1740414844260,0.74822,2673.0,2672.9,0.74821]
[1740414844466,0.00561241,2673.1,2672.9,3.2078]
[1740414844754,0.00561241,2673.1,2673.0,42.1359]
[1740414845250,3.2078,2674.1,2673.0,47.9747]
[1740414845452,2.957,2675.4,2673.9,3.2078]
[1740414845453,0.5725,2674.6,2673.9,3.2078]
[1740414845851,0.74789,2674.2,2674.1,0.74788]
[1740414846051,3.2078,2674.8,2674.0,0.5652]
[1740414846251,0.75343241,2674.4,2674.3,0.74784]
[1740414846450,0.00561241,2674.4,2674.0,0.5652]
[1740414846851,0.74786,2674.3,2674.2,0.74785]
[1740414847045,0.75344241,2674.4,2674.3,0.74784]
[1740414847251,0.00561241,2674.4,2674.3,0.74784]
[1740414847851,0.00561241,2674.4,2674.3,4.17084]
[1740414848254,0.00561241,2674.4,2674.3,4.75314]
[1740414848655,0.75342241,2674.4,2674.3,4.0053]
[1740414848960,0.75342241,2674.4,2674.3,0.5823]
[1740414849155,0.7479,2674.1,2674.0,1.88712]
[1740414849355,0.00561241,2674.4,2674.0,1.1392]
[1740414849557,0.75343241,2674.4,2674.0,1.1392]
[1740414849862,0.00561241,2674.4,2674.3,0.74784]
[1740414850060,0.75342241,2674.4,2674.3,0.74784]
[1740414850559,0.00561241,2674.4,2674.3,0.74784]
[1740414850757,0.75342241,2674.4,2674.3,0.74784]
[1740414851057,0.75344241,2674.4,2674.3,0.74784]
[1740414851356,0.74785,2674.3,2674.2,3.2078]
[1740414851557,0.74792,2674.0,2673.9,3.21341241]
[1740414852462,0.74792,2674.0,2673.9,3.96136241]
[1740414852666,0.74792,2674.0,2673.9,3.21341241]
[1740414853163,0.585,2674.3,2673.9,3.21341241]
[1740414853460,0.74787,2674.2,2674.1,0.74788]
[1740414853663,0.74787,2674.2,2673.9,3.21341241]
[1740414853856,0.00561241,2674.4,2673.9,3.21341241]
[1740414853857,0.74792,2674.0,2673.9,3.76641241]
[1740414854056,0.74792,2674.0,2673.9,3.21341241]
[1740414854862,0.74791,2674.1,2673.9,3.21341241]
[1740414855161,0.00561241,2674.4,2673.9,3.21341241]
[1740414855563,0.75343241,2674.4,2674.3,0.74784]
[1740414855765,0.00561241,2674.4,2674.3,0.74784]
[1740414856467,0.00561241,2674.4,2674.1,0.54]
[1740414856668,0.74786,2674.3,2674.1,4.49568]
[1740414856868,0.00561241,2674.4,2674.3,0.74784]
[1740414857069,0.75342241,2674.4,2674.3,0.74784]
[1740414857268,0.74787,2674.2,2674.1,4.49568]
[1740414857461,0.00561241,2674.4,2674.1,3.7478]
[1740414857662,0.00561241,2674.4,2674.3,0.74784]
[1740414858371,0.74784,2674.3,2674.2,2.982]
[1740414858864,0.74784,2674.3,2674.2,3.72987]
[1740414859968,0.75343241,2674.4,2674.3,0.74784]
[1740414860474,0.74784,2674.3,2674.2,3.72985]
[1740414860683,0.74784,2674.3,2674.2,2.982]
[1740414861173,0.00561241,2674.4,2674.2,2.982]
[1740414862572,0.00561241,2674.4,2674.1,3.7478]
[1740414863872,0.00561241,2674.4,2674.1,6.7298]
[1740414864771,0.00561241,2674.4,2674.3,0.74784]
[1740414865674,0.75342241,2674.4,2674.3,3.418]
[1740414865873,0.75342241,2674.4,2674.3,4.16584]
[1740414866173,0.75342241,2674.4,2674.3,3.418]
[1740414866372,0.75342241,2674.4,2674.3,4.16584]
[1740414866373,0.00561241,2674.4,2674.3,4.16584]
[1740414867265,0.75342241,2674.4,2674.3,4.16584]
[1740414867474,0.00561241,2674.4,2674.3,4.16584]
[1740414868678,0.00561241,2674.4,2674.3,10.16584]
[1740414868973,0.3741,2675.3,2675.0,0.74764]
[1740414869170,1.12169,2675.3,2675.2,0.74759]
[1740414870676,0.74759,2675.2,2675.1,3.9554]
[1740414870870,0.74759,2675.2,2675.1,3.2078]
[1740414871373,0.3741,2675.4,2675.1,3.2078]
[1740414875275,3.2078,2675.2,2674.7,3.2078]
[1740414875478,0.9577,2675.1,2674.7,3.2078]
[1740414875678,1.5463,2675.1,2674.7,3.2078]
[1740414877570,1.5463,2675.1,2674.7,3.7615]
[1740414878881,1.5463,2675.1,2674.7,0.5537]
[1740414879382,0.3741,2675.1,2674.7,7.7411]
[1740414879587,0.3741,2675.1,2674.7,3.9687]
[1740414879787,0.3741,2675.3,2674.7,7.1765]
[1740414879997,0.3741,2675.3,2675.0,3.2078]
[1740414880679,3.5819,2675.2,2674.7,3.9687]
[1740414880881,3.5819,2675.2,2674.7,0.5537]
[1740414881079,6.9959,2675.2,2674.6,0.579]
[1740414881784,6.9959,2675.2,2674.4,6.7787]
[1740414884877,0.3741,2674.7,2674.4,3.5709]
[1740414885078,3.5819,2674.5,2674.4,2.982]
[1740414885290,3.5819,2674.5,2673.9,3.41961241]
[1740414885291,3.5819,2674.5,2673.9,2.98761241]
[1740414885480,0.3741,2674.5,2674.4,0.74789]
[1740414886185,1.12196,2674.5,2674.4,0.74789]
[1740414886890,1.12196,2674.5,2674.3,0.74789]
[1740414887188,0.74791,2674.3,2674.2,1.1469]
[1740414887485,0.74791,2674.3,2674.2,1.89484]
[1740414887886,0.74791,2674.3,2674.2,0.5662]
[1740414888191,0.3741,2674.5,2674.1,3.2078]
[1740414888790,0.3741,2674.5,2673.9,0.00561241]
[1740414888992,0.9314,2674.5,2673.9,0.00561241]
[1740414889288,0.3741,2674.4,2673.9,0.00561241]
[1740414889686,0.3741,2674.2,2673.9,0.00561241]
[1740414891484,3.7483,2674.6,2673.9,3.41861241]
[1740414891689,0.5405,2674.6,2674.1,3.2078]
[1740414891994,0.3741,2674.5,2674.2,40.8]
[1740414892187,0.3741,2674.5,2673.9,3.41861241]
[1740414892585,0.3741,2674.5,2673.9,44.21861241]
[1740414893087,0.3741,2674.5,2673.9,3.41861241]
[1740414893685,0.5405,2674.6,2674.1,3.2078]
[1740414893894,4.3608,2674.8,2674.1,3.2078]
[1740414894099,0.5737,2674.8,2674.2,0.5613]
[1740414894691,0.5737,2674.8,2674.3,0.5313]
[1740414894692,1.1071,2674.8,2674.3,0.5313]
[1740414894882,1.4812,2674.8,2674.3,0.5313]
[1740414895689,0.3741,2674.8,2674.3,3.9433]
[1740414895891,0.3741,2674.8,2674.4,3.7949]
[1740414896195,3.2078,2674.9,2674.4,3.7949]
[1740414897290,0.3741,2675.3,2674.5,3.2078]
[1740414897491,0.3741,2675.3,2674.8,3.2078]
[1740414897694,0.3741,2675.3,2674.9,0.567]
[1740414898187,1.12175,2675.3,2674.9,2.43634]
[1740414898388,1.12175,2675.3,2675.2,0.74766]
[1740414899091,0.3741,2675.3,2675.2,0.74766]
[1740414899498,0.3741,2675.4,2675.1,3.2078]
[1740414899697,1.12171,2675.4,2675.3,0.74763]
[1740414899893,0.3741,2675.4,2675.3,0.74763]
[1740414900098,1.12171,2675.4,2675.3,0.74763]
[1740414900591,0.74768,2675.3,2675.2,0.74764]
[1740414900793,3.5819,2675.4,2674.9,3.7748]
[1740414900989,3.5819,2675.4,2674.9,2.43636]
[1740414901194,0.00561241,2675.5,2674.9,0.567]
[1740414901394,0.74772,2675.0,2674.9,0.567]
[1740414901693,0.74772,2675.0,2674.9,1.31475]
[1740414901897,0.7477,2675.1,2675.0,0.74768]
[1740414902199,3.58751241,2675.5,2674.9,0.567]
[1740414902699,3.21341241,2675.5,2674.9,0.567]